fUST/lending_fUST_20250812
["ID","MTS","AMOUNT","RATE_DAILY","PERIOD"]
[378719729,1754989861983,-151.0,0.00019479,2]
[378719731,1754989861994,-460.63851373,0.00019479,2]
[378719733,1754989862003,-257.15635224,0.00019479,2]
[378719734,1754989862012,-189.27516802,0.00019479,2]
[378719736,1754989862023,-500.0,0.00019479,2]
[378719738,1754989862032,-592.62240663,0.00019479,2]
[378719740,1754989862043,-1000.0,0.000195,5]
[378719742,1754989862052,-80000.0,0.000195,2]
[378719744,1754989862062,-1001.19906462,0.00019521,2]
[378719746,1754989862071,-211.57959969,0.00019521,2]
[378719748,1754989862081,-667.0,0.00019583,2]
[378719750,1754989862092,-500.0,0.0001963,2]
[378719752,1754989862102,-511.44,0.00019638,2]
[378719754,1754989862112,-460.0,0.00019638,2]
[378719756,1754989862121,-778.07,0.00019638,2]
[378719758,1754989862131,-460.0,0.00019638,2]
[378719760,1754989862140,-695.2,0.00019638,2]
[378719762,1754989862149,-3994.01,0.00019638,2]
[378719764,1754989862159,-460.0,0.00019638,2]
[378719766,1754989862169,-607.67,0.00019638,2]
[378719768,1754989862179,-2824.63,0.00019638,2]
[378719770,1754989862188,-496.78,0.00019638,2]
[378719772,1754989862198,-850.45,0.00019638,2]
[378719774,1754989862207,-2881.31,0.00019639,2]
[378719776,1754989862217,-624.47,0.00019639,2]
[378719778,1754989862226,-580.14,0.00019639,2]
[378719780,1754989862236,-1844.43,0.00019639,2]
[378719782,1754989862245,-3780.92,0.00019639,2]
[378719784,1754989862255,-852.8,0.00019639,2]
[378719786,1754989862264,-1219.8,0.00019639,2]
[378719788,1754989862274,-801.24,0.00019639,2]
[378719790,1754989862283,-1272.56,0.00019639,2]
[378719792,1754989862292,-832.96,0.00019639,2]
[378719794,1754989862301,-1059.69,0.00019639,2]
[378719796,1754989862311,-1297.9,0.00019639,2]
[378719798,1754989862320,-1696.21,0.00019639,2]
[378719800,1754989862329,-467.65303007,0.00019639,2]
[378719802,1754989862339,-460.0,0.00019641,2]
[378719804,1754989862348,-535.01,0.00019641,2]
[378719806,1754989862358,-460.0,0.00019641,2]
[378719808,1754989862368,-460.0,0.00019641,2]
[378719810,1754989862378,-856.74,0.00019641,2]
[378719812,1754989862387,-601.61,0.00019641,2]
[378719814,1754989862397,-622.63,0.00019641,2]
[378719816,1754989862406,-460.0,0.00019641,2]
[378719818,1754989862416,-460.0,0.00019641,2]
[378719820,1754989862425,-460.0,0.00019641,2]
[378719822,1754989862435,-460.0,0.00019641,2]
[378719824,1754989862444,-460.0,0.00019641,2]
[378719826,1754989862453,-582.68,0.00019641,2]
[378719828,1754989862463,-460.0,0.00019641,2]
[378719829,1754989862473,-460.0,0.00019641,2]
[378719831,1754989862482,-460.0,0.00019641,2]
[378719849,1754989862622,-519.88,0.00019641,2]
[378719852,1754989862661,-913.33,0.00019641,2]
[378719854,1754989862671,-689.99,0.00019641,2]
[378719856,1754989862684,-460.0,0.00019641,2]
[378719858,1754989862696,-460.0,0.00019641,2]
[378719860,1754989862705,-460.0,0.00019641,2]
[378719862,1754989862714,-353.7,0.00019641,2]
[378719864,1754989862724,-460.0,0.00019641,2]
[378719866,1754989862734,-731.05,0.00019641,2]
[378719868,1754989862744,-460.0,0.00019641,2]
[378719870,1754989862753,-413.77943958,0.00019641,2]
[378719872,1754989862764,-460.0,0.00019641,2]
[378719874,1754989862774,-839.52,0.00019641,2]
[378719876,1754989862784,-980.86,0.00019641,2]
[378719878,1754989862793,-816.4,0.00019641,2]
[378719880,1754989862803,-460.0,0.00019641,2]
[378719882,1754989862812,-575.45,0.00019641,2]
[378719884,1754989862821,-866.6,0.00019641,2]
[378719885,1754989862831,-460.0,0.00019641,2]
[378719886,1754989862840,-460.0,0.00019641,2]
[378719887,1754989862850,-638.72,0.00019641,2]
[378719888,1754989862859,-460.0,0.00019641,2]
[378719889,1754989862868,-460.0,0.00019641,2]
[378719890,1754989862878,-460.0,0.00019641,2]
[378719891,1754989862888,-1440.43,0.00019641,2]
[378719892,1754989862897,-460.0,0.00019641,2]
[378719893,1754989862907,-460.0,0.00019641,2]
[378719894,1754989862916,-1053.87,0.00019641,2]
[378719895,1754989862925,-679.08,0.00019641,2]
[378719896,1754989862934,-460.0,0.00019641,2]
[378719897,1754989862943,-1390.83,0.00019641,2]
[378719898,1754989862952,-466.54,0.00019641,2]
[378719899,1754989862961,-460.0,0.00019641,2]
[378719900,1754989862971,-698.56,0.00019641,2]
[378719901,1754989862979,-460.0,0.00019641,2]
[378719902,1754989862989,-460.0,0.00019641,2]
[378719903,1754989862998,-460.0,0.00019641,2]
[378719904,1754989863007,-600.61,0.00019641,2]
[378719905,1754989863016,-460.0,0.00019641,2]
[378719906,1754989863026,-688.97,0.00019641,2]
[378719907,1754989863036,-1382.57,0.00019641,2]
[378719908,1754989863046,-1743.77,0.00019641,2]
[378719909,1754989863056,-9176.97,0.00019641,2]
[378719910,1754989863066,-460.0,0.00019641,2]
[378719911,1754989863076,-880.3,0.00019641,2]
[378719912,1754989863086,-2946.27,0.00019641,2]
[378719913,1754989863096,-460.0,0.00019641,2]
[378719914,1754989863105,-598.93,0.00019641,2]
[378719915,1754989863115,-526.52004035,0.00019641,2]
[378719916,1754989863124,-460.0,0.00019641,2]
[378719917,1754989863133,-468.02075597,0.00019641,2]
[378719918,1754989863143,-460.0,0.00019641,2]
[378719919,1754989863152,-4712.31,0.00019641,2]
[378719920,1754989863162,-2191.98,0.00019641,2]
[378719921,1754989863172,-460.0,0.00019641,2]
[378719922,1754989863182,-460.0,0.00019641,2]
[378719923,1754989863192,-460.0,0.00019641,2]
[378719924,1754989863202,-826.58,0.00019641,2]
[378719925,1754989863212,-590.73,0.00019641,2]
[378719926,1754989863222,-460.0,0.00019641,2]
[378719927,1754989863232,-460.0,0.00019641,2]
[378719928,1754989863242,-722.38,0.00019641,2]
[378719929,1754989863252,-771.5,0.00019641,2]
[378719930,1754989863262,-1280.88,0.00019641,2]
[378719931,1754989863272,-460.0,0.00019641,2]
[378719932,1754989863282,-460.0,0.00019641,2]
[378719933,1754989863292,-460.0,0.00019641,2]
[378719934,1754989863302,-250.0,0.00019658,2]
[378719935,1754989863311,-800.0,0.00019659,2]
[378719936,1754989863322,-207.0,0.00019685,2]
[378719937,1754989863331,-28436.47,0.000197,2]
[378719938,1754989863341,-160.0,0.00019712,4]
[378719939,1754989863351,-168.0,0.00019713,2]
[378719940,1754989863362,-1057.59296263,0.00019721,2]
[378719942,1754989863371,-393.737612,0.00019721,2]
[378719944,1754989863381,-503.70740541,0.00019721,2]
[378719946,1754989863391,-500.81796425,0.00019721,2]
[378719948,1754989863401,-501.50728771,0.00019721,2]
[378719950,1754989863411,-1000.0,0.00019721,2]
[378719951,1754989863420,-955.11889611,0.00019721,2]
[378719952,1754989863430,-1004.1167407,0.00019721,2]
[378719954,1754989863439,-1000.0,0.00019721,2]
[378719956,1754989863449,-1006.71770364,0.00019721,2]
[378719958,1754989863460,-1000.0,0.00019721,2]
[378719960,1754989863469,-500.9019129,0.00019721,2]
[378719961,1754989863478,-1000.0,0.00019721,2]
[378719962,1754989863488,-1114.23221877,0.00019721,2]
[378719963,1754989863498,-1000.0,0.00019721,2]
[378719964,1754989863507,-151.0,0.00019726,2]
[378719965,1754989863518,-151.0,0.00019726,2]
[378719966,1754989863528,-250.0,0.00019726,2]
[378719967,1754989863538,-260.0,0.00019729,2]
[378719968,1754989863547,-576.0,0.00019739,2]
[378719969,1754989863557,-2095.32,0.00019739,2]
[378719970,1754989863567,-1918.85,0.00019739,2]
[378719971,1754989863577,-2635.68,0.00019739,2]
[378719972,1754989863587,-1506.4,0.00019739,2]
[378719973,1754989863596,-1237.41,0.00019739,2]
[378719974,1754989863606,-460.0,0.00019739,2]
[378719975,1754989863615,-3087.66,0.00019739,2]
[378719976,1754989863624,-3102.53,0.00019739,2]
[378719977,1754989863634,-460.0,0.0001974,2]
[378719978,1754989863643,-1285.31,0.0001974,2]
[378719979,1754989863653,-1061.43,0.0001974,2]
[378719980,1754989863663,-660.19,0.0001974,2]
[378719981,1754989863672,-703.67,0.0001974,2]
[378719982,1754989863684,-1571.34,0.0001974,2]
[378719983,1754989863697,-479.36,0.0001974,2]
[378719984,1754989863708,-460.0,0.0001974,2]
[378719985,1754989863717,-460.0,0.0001974,2]
[378719986,1754989863728,-460.0,0.0001974,2]
[378719987,1754989863738,-961.98,0.0001974,2]
[378719988,1754989863748,-432.22338106,0.0001974,2]
[378719989,1754989863759,-460.0,0.0001974,2]
[378719990,1754989863770,-596.7,0.0001974,2]
[378719991,1754989863782,-548.06,0.0001974,2]
[378719992,1754989863791,-851.89,0.0001974,2]
[378719993,1754989863802,-467.8041622,0.0001974,2]
[378719994,1754989863812,-460.0,0.0001974,2]
[378719995,1754989863822,-460.0,0.0001974,2]
[378719996,1754989863832,-703.0,0.0001974,2]
[378719997,1754989863842,-467.25878383,0.0001974,2]
[378719998,1754989863852,-534.6,0.0001974,2]
[378719999,1754989863862,-1574.67,0.0001974,2]
[378720000,1754989863871,-460.0,0.0001974,2]
[378720001,1754989863881,-651.47,0.0001974,2]
[378720002,1754989863890,-460.0,0.0001974,2]
[378720003,1754989863901,-460.0,0.0001974,2]
[378720004,1754989863911,-460.0,0.0001974,2]
[378720005,1754989863921,-2172.38,0.0001974,2]
[378720006,1754989863930,-460.0,0.0001974,2]
[378720007,1754989863940,-513.28599369,0.0001974,2]
[378720008,1754989863950,-460.0,0.0001974,2]
[378720009,1754989863960,-460.0,0.0001974,2]
[378720010,1754989863970,-460.0,0.0001974,2]
[378720011,1754989863980,-460.0,0.0001974,2]
[378720012,1754989863990,-460.0,0.0001974,2]
[378720013,1754989864000,-460.0,0.0001974,2]
[378720014,1754989864009,-460.0,0.0001974,2]
[378720015,1754989864019,-460.0,0.0001974,2]
[378720016,1754989864030,-460.0,0.0001974,2]
[378720017,1754989864040,-460.0,0.0001974,2]
[378720018,1754989864050,-460.0,0.00019742,2]
[378720019,1754989864060,-460.0,0.00019742,2]
[378720020,1754989864071,-460.0,0.00019742,2]
[378720021,1754989864080,-460.0,0.00019742,2]
[378720022,1754989864090,-460.0,0.00019742,2]
[378720023,1754989864099,-519.91,0.00019742,2]
[378720024,1754989864109,-536.22,0.00019742,2]
[378720025,1754989864119,-460.0,0.00019742,2]
[378720026,1754989864129,-268.36645022,0.00019742,2]
[378720027,1754989864139,-460.0,0.00019742,2]
[378720028,1754989864148,-596.59644255,0.00019742,2]
[378720029,1754989864158,-432.23355846,0.00019742,2]
[378720030,1754989864168,-460.0,0.00019742,2]
[378720031,1754989864177,-460.0,0.00019742,2]
[378720032,1754989864187,-460.0,0.00019742,2]
[378720033,1754989864197,-460.0,0.00019742,2]
[378720034,1754989864207,-460.0,0.00019742,2]
[378720035,1754989864217,-460.0,0.00019742,2]
[378720036,1754989864227,-591.24134132,0.00019742,2]
[378720037,1754989864236,-460.0,0.00019742,2]
[378720038,1754989864245,-514.43388959,0.00019742,2]
[378720039,1754989864254,-460.0,0.00019742,2]
[378720040,1754989864264,-460.0,0.00019742,2]
[378720041,1754989864274,-468.98016125,0.00019742,2]
[378720042,1754989864284,-460.0,0.00019742,2]
[378720043,1754989864293,-482.25842071,0.00019742,2]
[378720044,1754989864302,-460.0,0.00019742,2]
[378720045,1754989864313,-460.0,0.00019742,2]
[378720046,1754989864323,-460.0,0.00019742,2]
[378720047,1754989864333,-460.0,0.00019742,2]
[378720048,1754989864342,-382.68462221,0.00019742,2]
[378720049,1754989864352,-550.0,0.00019742,2]
[378720050,1754989864361,-460.0,0.00019742,2]
[378720051,1754989864371,-460.0,0.00019742,2]
[378720052,1754989864381,-515.1,0.00019742,2]
[378720053,1754989864391,-460.0,0.00019742,2]
[378720054,1754989864400,-1117.38,0.00019742,2]
[378720055,1754989864410,-463.66198058,0.00019742,2]
[378720056,1754989864419,-460.0,0.00019742,2]
[378720057,1754989864429,-460.0,0.00019742,2]
[378720058,1754989864439,-154.7877775,0.00019742,2]
[378720059,1754989864448,-460.0,0.00019742,2]
[378720060,1754989864458,-460.0,0.00019742,2]
[378720061,1754989864468,-837.98,0.00019742,2]
[378720062,1754989864477,-549.77400161,0.00019742,2]
[378720063,1754989864487,-460.0,0.00019742,2]
[378720064,1754989864496,-460.0,0.00019742,2]
[378720065,1754989864506,-460.0,0.00019742,2]
[378720066,1754989864515,-460.0,0.00019742,2]
[378720067,1754989864525,-154.54553138,0.00019753,2]
[378720068,1754989864534,-500.0,0.00019753,2]
[378720069,1754989864544,-151.0,0.00019753,2]
[378720070,1754989864553,-500.0,0.00019753,2]
[378720071,1754989864562,-3056.0,0.00019753,2]
[378720072,1754989864572,-256.53556747,0.00019753,2]
[378720073,1754989864581,-153.22312735,0.00019753,2]
[378720074,1754989864590,-201.04585953,0.00019753,2]
[378720075,1754989864600,-500.0,0.00019753,2]
[378720076,1754989864609,-1500.0,0.00019768,2]
[378720077,1754989864619,-1500.0,0.00019768,2]
[378720078,1754989864628,-1517.81377964,0.00019768,2]
[378720079,1754989864638,-1500.0,0.00019768,2]
[378720080,1754989864647,-1500.0,0.00019768,2]
[378720081,1754989864656,-1503.11918519,0.00019768,2]
[378720082,1754989864667,-1500.0,0.00019768,2]
[378720083,1754989864678,-185.94231455,0.00019768,2]
[378720084,1754989864696,-1500.0,0.00019768,2]
[378720085,1754989864705,-440.2549464,0.00019768,2]
[378720086,1754989864715,-502.98473716,0.00019768,2]
[378720087,1754989864726,-502.43706856,0.00019768,2]
[378720088,1754989864737,-1500.0,0.00019768,2]
[378720089,1754989864746,-500.0,0.00019768,2]
[378720090,1754989864756,-236.6667635,0.00019768,2]
[378720091,1754989864766,-157.0,0.000198,3]
[378720092,1754989864776,-157.0,0.000198,3]
[378720093,1754989864786,-207.0,0.00019806,2]
[378720094,1754989864796,-1300.0,0.00019812,2]
[378720095,1754989864805,-353.7,0.00019831,2]
[378720096,1754989864814,-207.0,0.0001984,2]
[378720097,1754989864825,-933.343881,0.00019863,2]
[378720098,1754989864834,-500.0,0.00019879,2]
[378720099,1754989864844,-2200.0,0.00019879,2]
[378720100,1754989864853,-40622.82475448,0.000199,2]
[378720101,1754989864863,-500.0,0.00019904,2]
[378720102,1754989864872,-151.0,0.00019904,2]
[378720103,1754989864881,-2006.12,0.00019905,3]
[378720104,1754989864891,-511.44,0.00019912,2]
[378720105,1754989864901,-460.0,0.00019912,2]
[378720106,1754989864910,-778.07,0.00019912,2]
[378720107,1754989864920,-460.0,0.00019912,2]
[378720108,1754989864930,-695.2,0.00019912,2]
[378720109,1754989864939,-3994.01,0.00019912,2]
[378720110,1754989864948,-460.0,0.00019912,2]
[378720111,1754989864958,-607.67,0.00019912,2]
[378720112,1754989864967,-2824.63,0.00019912,2]
[378720113,1754989864977,-496.78,0.00019912,2]
[378720114,1754989864987,-850.45,0.00019912,2]
[378720115,1754989864996,-2881.31,0.00019913,2]
[378720116,1754989865007,-624.47,0.00019913,2]
[378720117,1754989865016,-580.14,0.00019913,2]
[378720118,1754989865026,-1844.43,0.00019913,2]
[378720119,1754989865036,-3780.92,0.00019913,2]
[378720120,1754989865045,-852.8,0.00019913,2]
[378720121,1754989865054,-1219.8,0.00019913,2]
[378720122,1754989865064,-801.24,0.00019913,2]
[378720123,1754989865074,-1272.56,0.00019913,2]
[378720124,1754989865083,-832.96,0.00019913,2]
[378720125,1754989865134,-1059.69,0.00019913,2]
[378720126,1754989865144,-1297.9,0.00019913,2]
[378720127,1754989865153,-1696.21,0.00019913,2]
[378720128,1754989865163,-460.0,0.00019915,2]
[378720129,1754989865172,-535.01,0.00019915,2]
[378720130,1754989865181,-460.0,0.00019915,2]
[378720131,1754989865190,-460.0,0.00019915,2]
[378720132,1754989865199,-856.74,0.00019915,2]
[378720133,1754989865209,-601.61,0.00019915,2]
[378720134,1754989865219,-622.63,0.00019915,2]
[378720135,1754989865228,-460.0,0.00019915,2]
[378720136,1754989865237,-460.0,0.00019915,2]
[378720137,1754989865246,-460.0,0.00019915,2]
[378720138,1754989865255,-460.0,0.00019915,2]
[378720139,1754989865264,-460.0,0.00019915,2]
[378720140,1754989865272,-582.68,0.00019915,2]
[378720141,1754989865283,-460.0,0.00019915,2]
[378720142,1754989865292,-460.0,0.00019915,2]
[378720143,1754989865301,-460.0,0.00019915,2]
[378720144,1754989865310,-519.88,0.00019915,2]
[378720145,1754989865319,-913.33,0.00019915,2]
[378720146,1754989865328,-689.99,0.00019915,2]
[378720147,1754989865337,-460.0,0.00019915,2]
[378720148,1754989865347,-460.0,0.00019915,2]
[378720149,1754989865356,-460.0,0.00019915,2]
[378720150,1754989865365,-460.0,0.00019915,2]
[378720151,1754989865374,-731.05,0.00019915,2]
[378720152,1754989865383,-460.0,0.00019915,2]
[378720153,1754989865392,-460.0,0.00019915,2]
[378720154,1754989865402,-839.52,0.00019915,2]
[378720155,1754989865411,-980.86,0.00019915,2]
[378720156,1754989865420,-816.4,0.00019915,2]
[378720157,1754989865430,-460.0,0.00019915,2]
[378720158,1754989865439,-575.45,0.00019915,2]
[378720159,1754989865448,-866.6,0.00019915,2]
[378720160,1754989865457,-460.0,0.00019915,2]
[378720161,1754989865466,-460.0,0.00019915,2]
[378720162,1754989865475,-638.72,0.00019915,2]
[378720163,1754989865485,-460.0,0.00019915,2]
[378720164,1754989865494,-460.0,0.00019915,2]
[378720165,1754989865504,-1440.43,0.00019915,2]
[378720166,1754989865513,-460.0,0.00019915,2]
[378720167,1754989865523,-460.0,0.00019915,2]
[378720168,1754989865533,-1053.87,0.00019915,2]
[378720169,1754989865542,-679.08,0.00019915,2]
[378720170,1754989865552,-1390.83,0.00019915,2]
[378720171,1754989865562,-466.54,0.00019915,2]
[378720172,1754989865571,-460.0,0.00019915,2]
[378720173,1754989865580,-698.56,0.00019915,2]
[378720174,1754989865588,-460.0,0.00019915,2]
[378720175,1754989865597,-460.0,0.00019915,2]
[378720176,1754989865607,-460.0,0.00019915,2]
[378720177,1754989865616,-600.61,0.00019915,2]
[378720178,1754989865625,-161.02780148,0.00019915,2]
[378720179,1754989865634,-688.97,0.00019915,2]
[378720180,1754989865643,-1382.57,0.00019915,2]
[378720181,1754989865653,-1743.77,0.00019915,2]
[378720182,1754989865662,-9176.97,0.00019915,2]
[378720183,1754989865672,-460.0,0.00019915,2]
[378720184,1754989865682,-880.3,0.00019915,2]
[378720185,1754989865696,-2946.27,0.00019915,2]
[378720186,1754989865705,-460.0,0.00019915,2]
[378720187,1754989865720,-598.93,0.00019915,2]
[378720188,1754989865733,-460.0,0.00019915,2]
[378720189,1754989865741,-460.0,0.00019915,2]
[378720190,1754989865751,-4712.31,0.00019915,2]
[378720191,1754989865762,-2191.98,0.00019915,2]
[378720192,1754989865772,-460.0,0.00019915,2]
[378720193,1754989865782,-460.0,0.00019915,2]
[378720194,1754989865792,-460.0,0.00019915,2]
[378720195,1754989865801,-826.58,0.00019915,2]
[378720196,1754989865811,-590.73,0.00019915,2]
[378720197,1754989865821,-460.0,0.00019915,2]
[378720198,1754989865831,-460.0,0.00019915,2]
[378720199,1754989865841,-722.38,0.00019915,2]
[378720200,1754989865851,-771.5,0.00019915,2]
[378720201,1754989865860,-1280.88,0.00019915,2]
[378720202,1754989865870,-460.0,0.00019915,2]
[378720203,1754989865879,-460.0,0.00019915,2]
[378720204,1754989865889,-460.0,0.00019915,2]
[378720205,1754989865899,-1000.0,0.00019921,2]
[378720206,1754989865909,-1001.52412103,0.00019921,2]
[378720207,1754989865918,-1000.0,0.00019921,2]
[378720208,1754989865927,-1000.0,0.00019921,2]
[378720209,1754989865936,-1000.0,0.00019921,2]
[378720210,1754989865946,-1000.0,0.00019921,2]
[378720211,1754989865955,-230.0,0.00019925,2]
[378720212,1754989865964,-207.0,0.00019929,2]
[378720213,1754989865973,-500.0,0.00019973,2]
[378720214,1754989865983,-500.49707371,0.00019973,2]
[378720215,1754989865992,-500.549892,0.00019973,2]
[378720216,1754989866001,-500.0,0.00019973,2]
[378720217,1754989866010,-151.0,0.0002,2]
[378720218,1754989866020,-276.25127351,0.0002,2]
[378720219,1754989866031,-40196.36434972,0.0002,2]
[378720220,1754989866040,-7005.15695088,0.0002,2]
[378720221,1754989866049,-14402.1978769,0.0002,2]
[378720222,1754989866058,-56069.16055647,0.0002,2]
[378720223,1754989866067,-364.11032064,0.0002,2]
[378720224,1754989866077,-7237.17604782,0.0002,10]
[378720225,1754989866086,-17001.48056737,0.0002,2]
[378720226,1754989866095,-31509.20856891,0.0002,2]
[378720227,1754989866104,-1001.16399168,0.0002,2]
[378720228,1754989866114,-150.0,0.0002,2]
[378720229,1754989866123,-12622.87158752,0.0002,2]
[378720230,1754989866132,-458.6179049,0.0002,20]
[378720231,1754989866142,-151.64088741,0.0002,2]
[378720232,1754989866152,-300.40663365,0.0002,2]
[378720233,1754989866161,-4000.0,0.0002,4]
[378720234,1754989866170,-207.0,0.0002001,2]
[378720235,1754989866179,-576.0,0.00020013,2]
[378720236,1754989866188,-2095.32,0.00020013,2]
[378720237,1754989866197,-1918.85,0.00020013,2]
[378720238,1754989866206,-2635.68,0.00020013,2]
[378720239,1754989866215,-1506.4,0.00020013,2]
[378720240,1754989866225,-1237.41,0.00020013,2]
[378720241,1754989866234,-460.0,0.00020013,2]
[378720242,1754989866244,-3087.66,0.00020013,2]
[378720243,1754989866254,-3102.53,0.00020013,2]
[378720244,1754989866263,-460.0,0.00020014,2]
[378720245,1754989866272,-1285.31,0.00020014,2]
[378720246,1754989866282,-1061.43,0.00020014,2]
[378720247,1754989866291,-660.19,0.00020014,2]
[378720248,1754989866300,-703.67,0.00020014,2]
[378720249,1754989866309,-1571.34,0.00020014,2]
[378720250,1754989866318,-479.36,0.00020014,2]
[378720251,1754989866327,-460.0,0.00020014,2]
[378720252,1754989866336,-460.0,0.00020014,2]
[378720253,1754989866346,-460.0,0.00020014,2]
[378720254,1754989866355,-961.98,0.00020014,2]
[378720255,1754989866365,-460.0,0.00020014,2]
[378720256,1754989866375,-596.7,0.00020014,2]
[378720257,1754989866384,-548.06,0.00020014,2]
[378720258,1754989866394,-851.89,0.00020014,2]
[378720259,1754989866403,-460.0,0.00020014,2]
[378720260,1754989866413,-703.0,0.00020014,2]
[378720261,1754989866423,-534.6,0.00020014,2]
[378720262,1754989866432,-1574.67,0.00020014,2]
[378720263,1754989866443,-460.0,0.00020014,2]
[378720264,1754989866453,-651.47,0.00020014,2]
[378720265,1754989866463,-460.0,0.00020014,2]
[378720266,1754989866473,-460.0,0.00020014,2]
[378720267,1754989866482,-460.0,0.00020014,2]
[378720268,1754989866492,-2172.38,0.00020014,2]
[378720269,1754989866502,-237.74197553,0.00020014,2]
[378720270,1754989866511,-460.0,0.00020014,2]
[378720271,1754989866522,-460.0,0.00020014,2]
[378720272,1754989866533,-460.0,0.00020014,2]
[378720273,1754989866543,-460.0,0.00020014,2]
[378720274,1754989866552,-460.0,0.00020014,2]
[378720275,1754989866562,-600.97,0.00020014,2]
[378720276,1754989866571,-460.0,0.00020014,2]
[378720277,1754989866581,-460.0,0.00020014,2]
[378720278,1754989866591,-460.0,0.00020014,2]
[378720279,1754989866601,-460.0,0.00020014,2]
[378720280,1754989866610,-460.0,0.00020016,2]
[378720281,1754989866620,-460.0,0.00020016,2]
[378720282,1754989866630,-460.0,0.00020016,2]
[378720283,1754989866642,-460.0,0.00020016,2]
[378720284,1754989866652,-460.0,0.00020016,2]
[378720285,1754989866662,-519.91,0.00020016,2]
[378720286,1754989866673,-536.22,0.00020016,2]
[378720287,1754989866683,-468.03493492,0.00020016,2]
[378720288,1754989866697,-460.0,0.00020016,2]
[378720289,1754989866708,-473.12372232,0.00020016,2]
[378720290,1754989866719,-581.89297595,0.00020016,2]
[378720291,1754989866731,-460.0,0.00020016,2]
[378720292,1754989866744,-460.0,0.00020016,2]
[378720293,1754989866754,-460.0,0.00020016,2]
[378720294,1754989866769,-431.20027003,0.00020016,2]
[378720295,1754989866779,-460.0,0.00020016,2]
[378720296,1754989866789,-460.0,0.00020016,2]
[378720297,1754989866799,-460.0,0.00020016,2]
[378720298,1754989866809,-460.0,0.00020016,2]
[378720299,1754989866820,-460.0,0.00020016,2]
[378720300,1754989866829,-460.0,0.00020016,2]
[378720301,1754989866839,-477.50991181,0.00020016,2]
[378720302,1754989866851,-550.0,0.00020016,2]
[378720303,1754989866860,-460.0,0.00020016,2]
[378720304,1754989866870,-460.0,0.00020016,2]
[378720305,1754989866879,-515.1,0.00020016,2]
[378720306,1754989866888,-177.02041791,0.00020016,2]
[378720307,1754989866898,-1117.38,0.00020016,2]
[378720308,1754989866907,-460.0,0.00020016,2]
[378720309,1754989866917,-460.0,0.00020016,2]
[378720310,1754989866927,-460.0,0.00020016,2]
[378720311,1754989866936,-460.0,0.00020016,2]
[378720312,1754989866946,-837.98,0.00020016,2]
[378720313,1754989866955,-460.0,0.00020016,2]
[378720314,1754989866967,-460.0,0.00020016,2]
[378720315,1754989866981,-460.0,0.00020016,2]
[378720316,1754989866991,-460.0,0.00020016,2]
[378720317,1754989867000,-353.7,0.0002002,2]
[378720318,1754989867010,-1000.0,0.00020021,2]
[378720319,1754989867020,-1000.0,0.00020021,2]
[378720320,1754989867031,-1000.0,0.00020021,2]
[378720321,1754989867040,-501.15150345,0.00020021,2]
[378720322,1754989867050,-1000.0,0.00020021,2]